bitfinex/quotes_BTCUSD_20251104
["timestamp","ask_amount","ask_price","bid_price","bid_amount"]
[1762285697088,0.53800055,101010.0,100990.0,0.21830926]
[1762285697329,0.61157055,101010.0,100990.0,0.20840729]
[1762285697612,0.2487198,101000.0,100990.0,0.01036789]
[1762285698078,0.12427,101000.0,100990.0,0.19852265]
[1762285698305,0.33523014,101020.0,101000.0,0.1980198]
[1762285698534,0.34,101010.0,101000.0,0.1980198]
[1762285698748,0.54309831,101010.0,101000.0,0.1980198]
[1762285698975,0.34309812,101010.0,101000.0,0.1980198]
[1762285699190,0.34,101010.0,101000.0,0.92551492]
[1762285699428,0.00025157,101020.0,101010.0,0.19800019]
[1762285699642,0.00025157,101020.0,101000.0,0.88673456]
[1762285699643,0.27490001,101020.0,101000.0,0.19801404]
[1762285700064,0.20133001,101020.0,101000.0,0.19801404]
[1762285700308,0.27490001,101020.0,101000.0,0.19801404]
[1762285700519,0.27490002,101020.0,101000.0,0.19801404]
[1762285700724,0.20133002,101020.0,101000.0,0.19801404]
[1762285700948,0.20132998,101020.0,101010.0,0.19800019]
[1762285701152,0.20132998,101020.0,100990.0,0.21830926]
[1762285701381,0.19800019,101010.0,101000.0,0.1980198]
[1762285701636,0.19800019,101010.0,100990.0,0.21830926]
[1762285701841,0.20109816,101010.0,101000.0,0.1980198]
[1762285702056,0.61180216,101020.0,101000.0,0.1980198]
[1762285702276,0.24870019,101010.0,100990.0,0.01036789]
[1762285702492,0.25179813,101010.0,100990.0,0.01036789]
[1762285702711,0.1980198,101000.0,100990.0,0.01036789]
[1762285703385,0.2487198,101000.0,100990.0,0.01036789]
[1762285704149,0.07357,101010.0,100990.0,0.36090729]
[1762285704357,0.2487198,101000.0,100990.0,0.16286789]
[1762285704595,0.6622898,101000.0,100990.0,0.00348325]
[1762285704762,3.72557035,101000.0,100990.0,0.00348325]
[1762285704962,3.7553173,101000.0,100990.0,0.00048325]
[1762285705392,3.7553173,101000.0,100990.0,0.00148325]
[1762285705772,3.71913502,101000.0,100990.0,0.00148325]
[1762285706028,0.69513502,101000.0,100990.0,0.00148325]
[1762285706246,0.39379827,101000.0,100990.0,0.19952265]
[1762285706403,0.34309827,101000.0,100990.0,0.19852265]
[1762285706561,0.34,101000.0,100990.0,0.19852265]
[1762285706761,0.342,101000.0,100990.0,0.19852265]
[1762285707156,0.35723897,101000.0,100990.0,0.19852265]
[1762285707819,0.35414072,101000.0,100990.0,0.00048325]
[1762285708169,0.55216052,101000.0,100990.0,0.00048325]
[1762285708379,0.67952875,101000.0,100990.0,0.00048325]
[1762285708791,0.48150895,101000.0,100990.0,0.00048325]
[1762285708990,0.67952875,101000.0,100990.0,0.00048325]
[1762285709165,0.48150895,101000.0,100990.0,0.19852265]
[1762285709372,0.60595875,101000.0,100990.0,0.00048325]
[1762285709507,0.40793895,101000.0,100990.0,0.19852265]
[1762285709712,0.60595875,101000.0,100990.0,0.00048325]
[1762285709927,0.70352875,101000.0,100990.0,0.00048325]
[1762285710325,0.67952875,101000.0,100990.0,0.00048325]
[1762285711369,0.70352875,101000.0,100990.0,0.00048325]
[1762285711570,0.67952875,101000.0,100990.0,0.00048325]
[1762285712454,0.70352875,101000.0,100990.0,0.00048325]
[1762285712661,0.72190222,101000.0,100990.0,0.00048325]
[1762285713086,0.75164575,101000.0,100990.0,0.00048325]
[1762285713291,0.72764575,101000.0,100990.0,0.00048325]
[1762285713504,3.77717351,101000.0,100990.0,0.00048325]
[1762285713712,3.78782803,101000.0,100990.0,0.00048325]
[1762285715179,3.7580845,101000.0,100990.0,0.00048325]
[1762285715574,0.69790222,101000.0,100990.0,0.00048325]
[1762285715834,0.42631242,101000.0,100990.0,0.19852265]
[1762285716038,0.34509823,101000.0,100990.0,0.20840729]
[1762285716240,0.35377419,101000.0,100990.0,0.20840729]
[1762285716657,0.67828214,101000.0,100990.0,0.20840729]
[1762285716877,0.69667037,101000.0,100990.0,0.01036789]
[1762285717082,0.72067037,101000.0,100990.0,0.01036789]
[1762285717285,0.69667037,101000.0,100990.0,0.01036789]
[1762285717693,0.72067037,101000.0,100990.0,0.01036789]
[1762285717892,0.72067037,101000.0,100990.0,0.00048325]
[1762285718709,0.49865057,101000.0,100990.0,0.01036789]
[1762285718914,0.69667037,101000.0,100990.0,0.01036789]
[1762285719117,0.72067037,101000.0,100990.0,0.01036789]
[1762285719394,0.69667037,101000.0,100990.0,0.01036789]
[1762285720227,0.69667037,101000.0,100990.0,0.00048325]
[1762285720429,0.42366057,101000.0,100990.0,0.20840729]
[1762285720852,0.49736057,101000.0,100990.0,0.20840729]
[1762285721067,0.36348638,101000.0,100990.0,0.20840729]
[1762285721276,0.00509815,101000.0,100990.0,0.89712205]
[1762285721481,0.00509815,101000.0,100990.0,0.01036789]
[1762285721686,0.04842,101000.0,100990.0,0.20840729]
[1762285722086,0.04642,101000.0,100990.0,0.20840729]
[1762285722285,0.38642,101000.0,100990.0,0.20840729]
[1762285722488,0.35186129,101000.0,100990.0,0.20940729]
[1762285722819,0.34,101000.0,100990.0,0.20940729]
[1762285723255,0.01191915,101010.0,100990.0,0.20940729]
[1762285723256,0.19800019,101010.0,100990.0,0.20940729]
[1762285723423,0.293191,101010.0,100990.0,0.20940729]
[1762285723642,0.29319188,101010.0,101000.0,0.1980198]
[1762285723847,0.29319188,101010.0,100990.0,0.20940729]
[1762285724042,0.29319188,101010.0,100990.0,0.20940101]
[1762285724328,0.3181398,101000.0,100990.0,0.01136789]
[1762285724529,0.32123789,101000.0,100990.0,0.01136789]
[1762285724745,0.33963248,101000.0,100990.0,0.01136789]
[1762285724941,0.38916024,101000.0,100990.0,0.00148325]
[1762285725094,0.70363248,101000.0,100990.0,0.00048325]
[1762285725937,3.73981476,101000.0,100990.0,0.00048325]
[1762285728205,3.57422168,100990.0,100980.0,0.00117116]
[1762285728352,3.77669436,100990.0,100980.0,0.00131628]
[1762285730674,3.78069436,100990.0,100980.0,0.00131628]
[1762285731295,3.78069436,100990.0,100930.0,0.19815492]
[1762285731296,0.53813436,100950.0,100930.0,0.19815492]
[1762285731540,0.6214175,100940.0,100930.0,0.00014389]
[1762285731756,0.6951175,100940.0,100930.0,0.00014389]
[1762285732787,0.49698,100940.0,100930.0,0.19830102]
[1762285733002,0.6951175,100940.0,100930.0,0.00014389]
[1762285733412,0.49698,100940.0,100930.0,0.19830102]
[1762285733615,0.49698,100940.0,100930.0,0.20330102]
[1762285733826,0.37686,100940.0,100930.0,0.19830102]
[1762285734234,0.37686,100940.0,100930.0,0.19930102]
[1762285734440,0.03686,100960.0,100940.0,0.1981375]
[1762285734653,0.37686,100960.0,100950.0,0.19811788]
[1762285735074,0.69507825,100960.0,100940.0,0.19813679]
[1762285735267,0.15698,100950.0,100940.0,0.19813679]
[1762285735580,0.08328,100950.0,100940.0,0.1981375]
[1762285735783,0.35509788,100950.0,100940.0,0.1981375]
[1762285735982,0.35509788,100950.0,100930.0,0.20820887]
[1762285736204,0.04642,100940.0,100930.0,0.20820887]
[1762285737154,0.03686,100950.0,100940.0,0.19914479]
[1762285737566,0.64865825,100960.0,100940.0,0.19914479]
[1762285737765,0.03686,100950.0,100940.0,0.1981375]
[1762285738420,0.5749584,100960.0,100950.0,0.19811788]
[1762285738624,0.5380984,100960.0,100940.0,0.1981375]
[1762285738843,0.4137,100960.0,100950.0,0.19811788]
[1762285739059,0.15698,100950.0,100940.0,0.1981375]
[1762285739566,0.15698,100950.0,100940.0,0.1981775]
[1762285739774,0.08328,100950.0,100940.0,0.2021775]
[1762285740197,0.28139788,100950.0,100940.0,0.00404]
[1762285740417,0.35509788,100950.0,100940.0,0.00404]
[1762285740674,0.37909788,100950.0,100940.0,0.00404]
[1762285740898,0.37909788,100950.0,100940.0,0.2021775]
[1762285740899,0.08328,100950.0,100940.0,0.2021775]
[1762285741112,0.08328,100950.0,100940.0,0.21206214]
[1762285741549,0.03686,100950.0,100940.0,0.21206214]
[1762285741769,0.03686,100950.0,100940.0,0.20806214]
[1762285741974,0.03686,100950.0,100940.0,0.21006214]
[1762285742180,0.53809825,100960.0,100940.0,0.21006214]
[1762285742386,0.69509788,100950.0,100940.0,0.00992464]
[1762285742591,0.71909788,100950.0,100940.0,0.00404]
[1762285742796,0.69509788,100950.0,100940.0,0.00404]
[1762285743003,0.49698,100950.0,100940.0,0.2021775]
[1762285743229,0.42328,100950.0,100940.0,0.21206214]
[1762285743429,0.08328,100950.0,100940.0,0.20906942]
[1762285744056,0.28139788,100950.0,100940.0,0.01093192]
[1762285744273,0.35509788,100950.0,100940.0,0.01093192]
[1762285744940,0.35509788,100950.0,100940.0,0.00104728]
[1762285745054,0.15698,100950.0,100940.0,0.20906942]
[1762285745259,0.35509788,100950.0,100940.0,0.01493192]
[1762285745467,0.35509788,100950.0,100940.0,0.00104728]
[1762285746509,0.35509788,100950.0,100940.0,0.00304728]
[1762285746710,0.28139788,100950.0,100940.0,0.19918478]
[1762285747107,0.28139788,100950.0,100940.0,0.00104728]
[1762285747312,0.03686,100950.0,100940.0,0.19918478]
[1762285747499,0.34,100950.0,100940.0,0.20906942]
[1762285747900,0.57497788,100950.0,100940.0,0.20906942]
[1762285748110,0.62139788,100950.0,100940.0,0.01093192]
[1762285748315,0.69509788,100950.0,100940.0,0.01093192]
[1762285748859,0.69509788,100950.0,100940.0,0.00504728]
[1762285749398,0.5381375,100940.0,100930.0,0.00014389]
[1762285749806,0.74396754,100940.0,100930.0,0.00014389]
[1762285750002,3.71843978,100940.0,100930.0,3.89e-06]
[1762285750236,3.71843978,100940.0,100890.0,0.00988464]
[1762285750237,0.19819641,100910.0,100890.0,0.00988464]
[1762285750463,0.41908,100900.0,100890.0,0.01002851]
[1762285750695,0.68683605,100900.0,100890.0,0.01002851]
[1762285750911,0.68683605,100900.0,100890.0,0.00014387]
[1762285750912,0.72032484,100900.0,100890.0,0.00014387]
[1762285751120,0.7698526,100900.0,100890.0,0.00014387]
[1762285752036,3.80903488,100900.0,100890.0,0.00014387]
[1762285752233,3.80603488,100900.0,100890.0,0.00014387]
[1762285752804,3.7698526,100900.0,100890.0,0.00014387]
[1762285753030,3.72032484,100900.0,100890.0,0.00014387]
[1762285753242,3.80903488,100900.0,100890.0,0.00014387]
[1762285753673,3.79703488,100900.0,100890.0,0.00014387]
[1762285754068,3.74750712,100900.0,100890.0,0.00014387]
[1762285754270,0.53825535,100880.0,100870.0,0.0002]
[1762285754468,0.62400316,100870.0,100840.0,0.20263021]
[1762285754694,0.34,100850.0,100840.0,0.20873347]
[1762285754900,0.41908,100850.0,100840.0,0.20873347]
[1762285755770,0.61739432,100850.0,100840.0,0.00048412]
[1762285755966,0.69003677,100850.0,100840.0,0.00048412]
[1762285756183,0.70824345,100850.0,100840.0,0.00300534]
[1762285756382,0.70824345,100850.0,100840.0,0.00500534]
[1762285757580,0.70824345,100850.0,100840.0,0.00300534]
[1762285758415,0.70824345,100850.0,100840.0,0.00400534]
[1762285758658,0.70824345,100850.0,100840.0,0.00300534]
[1762285758866,0.75777121,100850.0,100840.0,0.00300534]
[1762285759071,0.73424345,100850.0,100840.0,0.00300534]
[1762285759632,0.73224345,100850.0,100840.0,0.00300534]
[1762285759840,0.50992913,100850.0,100840.0,0.00300534]
[1762285759999,0.70824345,100850.0,100840.0,0.00300534]
[1762285760202,0.69003677,100850.0,100840.0,0.00300534]
[1762285760776,0.69103677,100850.0,100840.0,0.00500534]
[1762285761211,0.77674681,100850.0,100840.0,0.00500534]
[1762285763158,3.77674681,100850.0,100840.0,0.00500534]
[1762285763313,3.72721905,100850.0,100840.0,0.00500534]
[1762285763535,3.74482957,100850.0,100840.0,0.00500534]
[1762285763736,3.78101185,100850.0,100840.0,0.00500534]
[1762285763939,3.57451627,100840.0,100830.0,1.0002]
[1762285764186,3.74326648,100840.0,100830.0,1.00034401]
[1762285765230,0.74326648,100840.0,100830.0,1.00034401]
[1762285765675,0.74426648,100840.0,100830.0,1.00234401]
[1762285765877,3.71873872,100840.0,100830.0,1.00234401]
[1762285767584,3.71873872,100840.0,100830.0,0.93085401]
[1762285767915,3.71773872,100840.0,100830.0,0.92885401]
[1762285768120,3.71773872,100840.0,100830.0,0.46521636]
[1762285768282,3.74082701,100840.0,100830.0,0.46621636]
[1762285768684,3.73582701,100840.0,100830.0,0.46521636]
[1762285768857,0.53842191,100800.0,100780.0,0.20856489]
[1762285769062,0.07908,100790.0,100780.0,0.20870951]
[1762285769447,0.68705238,100790.0,100780.0,0.00034462]
[1762285769880,0.48862,100790.0,100780.0,0.19879669]
[1762285770083,0.68705238,100790.0,100780.0,0.00034462]
[1762285770289,0.68705238,100790.0,100780.0,0.00185901]
[1762285770290,0.73658014,100790.0,100780.0,0.00185901]
[1762285770495,3.73658014,100790.0,100780.0,0.00185901]
[1762285770687,0.19845207,100780.0,100770.0,0.0002]
[1762285770892,0.16564776,100780.0,100770.0,0.00034524]
[1762285771019,0.31457207,100780.0,100770.0,0.00034524]
[1762285771443,0.36409983,100780.0,100770.0,0.00034524]
[1762285772285,0.31557207,100780.0,100770.0,0.00434524]
[1762285772431,3.31557207,100780.0,100770.0,0.00434524]
[1762285773896,3.11712,100780.0,100770.0,0.202817]
[1762285775260,0.001,100780.0,100770.0,0.289277]
[1762285775481,0.001,100780.0,100770.0,0.38704305]
[1762285775796,0.001,100780.0,100770.0,0.246047]
[1762285776661,0.001,100780.0,100770.0,0.2462995]
[1762285776866,0.04721848,100790.0,100780.0,0.19845207]
[1762285777073,0.31586153,100790.0,100780.0,0.00988464]
[1762285777276,0.70107153,100790.0,100780.0,0.00988464]
[1762285777447,0.70107086,100790.0,100780.0,0.00988464]
[1762285777645,0.50263848,100790.0,100780.0,0.20833671]
[1762285777954,0.70107086,100790.0,100780.0,0.00988464]
[1762285778360,3.70107086,100790.0,100780.0,0.00988464]
[1762285778700,3.50363848,100790.0,100780.0,0.21233671]
[1762285778902,3.70207086,100790.0,100780.0,0.00988464]
[1762285779093,3.70107086,100790.0,100780.0,0.00988464]
[1762285779437,3.70107086,100790.0,100780.0,0.20833671]
[1762285779718,3.70107086,100790.0,100780.0,0.00988464]
[1762285780076,3.50263848,100790.0,100780.0,0.20833671]
[1762285780282,3.50674239,100790.0,100780.0,0.21333671]
[1762285780803,3.43653239,100790.0,100780.0,0.21333671]
[1762285781003,3.63496477,100790.0,100780.0,0.01488464]
[1762285781207,3.70227477,100790.0,100780.0,0.01488464]
[1762285781762,3.70227477,100790.0,100780.0,0.005]
[1762285781969,3.78160856,100790.0,100780.0,0.005]
[1762285782176,3.7320808,100790.0,100780.0,0.005]
[1762285783233,3.70227477,100790.0,100780.0,0.005]
[1762285785028,0.53845207,100780.0,100770.0,0.00059774]
[1762285785265,0.65530598,100780.0,100770.0,0.00059774]
[1762285785852,3.65530598,100780.0,100770.0,0.00059774]
[1762285786494,3.68511409,100780.0,100770.0,0.00059774]
[1762285786639,3.68611409,100780.0,100770.0,0.00559774]
[1762285786844,3.65630598,100780.0,100770.0,0.00559774]
[1762285787051,3.65630598,100780.0,100770.0,0.00059774]
[1762285787253,3.31730598,100780.0,100770.0,0.00259774]
[1762285788847,3.34130598,100780.0,100770.0,0.00259774]
[1762285788983,3.31730598,100780.0,100770.0,0.00259774]
[1762285789184,3.65730598,100780.0,100770.0,0.00259774]
[1762285789388,3.45885391,100780.0,100770.0,0.00259774]
[1762285789609,3.65730598,100780.0,100770.0,0.00259774]
[1762285793558,0.19847176,100770.0,100760.0,0.0002]
[1762285793746,3.53849146,100760.0,100750.0,0.00028]
[1762285793992,0.53853108,100740.0,100720.0,0.2183277]
[1762285794199,0.53853108,100740.0,100720.0,0.28145239]
[1762285794200,0.34,100740.0,100720.0,0.28145239]
[1762285794376,0.34,100740.0,100730.0,0.19855058]
[1762285794635,0.34,100740.0,100730.0,0.25839647]
[1762285794838,0.34,100740.0,100730.0,0.24266058]
[1762285795066,0.34,100740.0,100730.0,0.19855058]
[1762285795330,0.58497087,100740.0,100720.0,0.23734239]
[1762285795536,0.58497087,100740.0,100730.0,4e-05]
[1762285795743,3.53853087,100740.0,100730.0,4e-05]
[1762285795962,3.58497087,100740.0,100730.0,4e-05]
[1762285796184,0.38644,100740.0,100730.0,0.19859058]
[1762285796412,0.45375,100740.0,100730.0,4e-05]
[1762285796604,0.65228087,100740.0,100730.0,4e-05]
[1762285796824,0.45375,100740.0,100730.0,0.19859058]
[1762285797248,3.34,100740.0,100730.0,0.24270058]
[1762285797447,3.34,100740.0,100730.0,0.19859058]
[1762285797448,0.34,100740.0,100730.0,0.19859058]
[1762285797878,0.341,100740.0,100730.0,0.24570058]
[1762285798267,0.34007966,100740.0,100730.0,0.20159058]
[1762285798475,0.3391465,100740.0,100730.0,0.20159058]
[1762285798690,0.33821492,100740.0,100730.0,0.24570058]
[1762285798902,0.33727466,100740.0,100730.0,0.24570058]
[1762285799108,0.33697256,100740.0,100730.0,0.24570058]
[1762285799317,0.00068823,100740.0,100730.0,0.34067835]
[1762285799518,0.03513571,100750.0,100740.0,0.19853087]
[1762285799728,0.7654867,100760.0,100740.0,0.25309551]
[1762285799928,2.9942039,100750.0,100740.0,0.25309551]
[1762285800144,2.9938854,100750.0,100740.0,0.25309551]
[1762285800358,0.28035116,100750.0,100740.0,0.00988464]
[1762285800574,0.27942441,100750.0,100740.0,0.01064239]
[1762285800774,3.27623498,100750.0,100740.0,0.01064239]
[1762285800984,3.27562931,100750.0,100740.0,0.00175775]
[1762285801136,3.61499991,100750.0,100740.0,0.00075775]
[1762285801359,3.61438564,100750.0,100740.0,0.00075775]
[1762285801569,3.29420192,100740.0,100730.0,4e-05]
[1762285801773,3.31133698,100740.0,100730.0,4e-05]
[1762285801976,3.04614343,100740.0,100730.0,4e-05]
[1762285802337,3.04614343,100740.0,100730.0,0.19859058]
[1762285802579,0.09744715,100750.0,100730.0,0.24460058]
[1762285802816,0.34,100740.0,100730.0,0.24460058]
[1762285803241,0.344,100740.0,100730.0,0.24460058]
[1762285803445,0.33099524,100770.0,100750.0,0.19850454]
[1762285803670,3.0,100760.0,100750.0,0.19850454]
[1762285803817,3.0,100760.0,100750.0,0.22862454]
[1762285804013,3.0,100760.0,100750.0,0.27463454]
[1762285804267,3.34,100760.0,100750.0,0.32925454]
[1762285804466,3.0,100760.0,100750.0,0.32925454]
[1762285804701,0.28538022,100790.0,100760.0,0.19849146]
[1762285804909,3.0,100780.0,100770.0,0.21831893]
[1762285805023,0.3067946,100790.0,100770.0,0.19847176]
[1762285805024,0.07702623,100790.0,100770.0,0.19847176]
[1762285805222,0.06553021,100790.0,100770.0,0.19847176]
[1762285805425,0.01165848,100790.0,100780.0,0.24446207]
[1762285805635,0.0354,100800.0,100780.0,0.30896671]
[1762285805838,0.59537481,100800.0,100790.0,0.0245]
[1762285806033,0.05385835,100800.0,100790.0,0.0245]
[1762285806240,0.05385835,100800.0,100790.0,0.22293238]
[1762285806454,0.05385835,100800.0,100790.0,0.0245]
[1762285806854,0.36602104,100800.0,100780.0,0.00988464]
[1762285807058,0.36602104,100800.0,100780.0,0.02475112]
[1762285807261,0.65132918,100800.0,100790.0,0.001]
[1762285807467,0.31132918,100800.0,100790.0,0.001]
[1762285807690,0.31132918,100800.0,100790.0,0.0255]
[1762285807894,0.31326089,100800.0,100790.0,0.0255]
[1762285808097,0.7022573,100800.0,100790.0,0.001]
[1762285808315,0.20839703,100780.0,100760.0,0.00988464]
[1762285808515,0.36964,100770.0,100760.0,0.00988464]
[1762285808728,0.36964,100770.0,100760.0,0.05589464]
[1762285808729,0.34,100770.0,100760.0,0.05589464]
[1762285808948,0.34,100770.0,100760.0,0.11151464]
[1762285809166,0.53847176,100770.0,100760.0,0.05589464]
[1762285809372,0.3754,100770.0,100760.0,0.00988464]
[1762285809576,0.34,100770.0,100760.0,0.28379948]
[1762285809781,3.0,100780.0,100760.0,0.34934405]
[1762285809998,3.0,100780.0,100760.0,0.34041781]
[1762285810203,3.19846551,100780.0,100760.0,0.05689464]
[1762285810431,0.26191551,100780.0,100760.0,0.01088464]
[1762285810630,3.0,100770.0,100760.0,0.2083761]
[1762285810873,0.02143091,100770.0,100760.0,0.00988464]
[1762285811520,0.25145267,100770.0,100760.0,0.00988464]
[1762285811725,0.05298091,100770.0,100760.0,0.00988464]
[1762285811958,0.05298091,100770.0,100760.0,0.2083761]
[1762285812129,0.02143091,100770.0,100760.0,0.3032161]
[1762285812273,0.02143091,100770.0,100760.0,0.35640083]
[1762285812475,0.34,100780.0,100770.0,0.24272176]
[1762285812694,0.34,100780.0,100770.0,0.09484]
[1762285812893,0.0354,100790.0,100780.0,0.19845207]
[1762285813098,0.24387808,100800.0,100780.0,0.25258671]
[1762285813310,3.19855745,100800.0,100790.0,0.00172695]
[1762285813520,3.53843238,100790.0,100780.0,0.00988464]
[1762285813737,3.53843238,100790.0,100760.0,0.31218963]
[1762285813738,0.00117464,100770.0,100760.0,0.31218963]
[1762285813962,0.00117464,100770.0,100760.0,0.21829954]
[1762285814165,0.00117464,100770.0,100760.0,0.05413464]
[1762285814807,0.00117464,100770.0,100760.0,0.2526261]
[1762285815088,0.00117464,100770.0,100760.0,0.3032161]
[1762285815717,0.00117464,100770.0,100760.0,0.05413464]
[1762285815958,0.1996464,100770.0,100760.0,0.05413464]
[1762285816155,0.2006464,100770.0,100760.0,0.05413464]
[1762285816610,0.2006464,100770.0,100760.0,0.10472464]
[1762285816824,0.00217464,100770.0,100760.0,0.10472464]
[1762285816981,0.00217464,100770.0,100760.0,0.05413464]
[1762285817188,3.2758264,100770.0,100760.0,0.00988464]
[1762285817470,3.6792764,100770.0,100760.0,0.1495]
[1762285818349,3.6782764,100770.0,100760.0,0.1495]
[1762285818744,3.6168264,100770.0,100760.0,0.1495]
[1762285818992,3.5711964,100770.0,100760.0,0.1495]
[1762285819178,3.6168264,100770.0,100760.0,0.1495]
[1762285819401,3.6802764,100770.0,100760.0,0.1495]
[1762285819603,3.6168264,100770.0,100760.0,0.1495]
[1762285819962,3.6802764,100770.0,100760.0,0.1495]
[1762285820142,3.5731964,100770.0,100760.0,0.1495]
[1762285820561,3.6168264,100770.0,100760.0,0.1495]
[1762285820938,3.6802764,100770.0,100760.0,0.1495]
[1762285821146,3.41835464,100770.0,100760.0,0.1495]
[1762285821397,0.37472464,100770.0,100760.0,0.1495]
[1762285821613,0.00317464,100770.0,100760.0,0.34832378]
[1762285821774,0.00317464,100770.0,100760.0,0.33620349]
[1762285822178,0.00317464,100770.0,100760.0,0.34608813]
[1762285822462,0.00317464,100770.0,100760.0,0.10472464]
[1762285822703,0.00317464,100770.0,100760.0,0.3032161]
[1762285822924,0.00317464,100770.0,100760.0,0.05413464]
[1762285823137,0.00117464,100770.0,100760.0,0.05413464]
[1762285823338,0.00217464,100770.0,100760.0,0.05413464]
[1762285823550,0.00217464,100770.0,100740.0,0.26305653]
[1762285823551,0.34,100750.0,100740.0,0.00988464]
[1762285823752,0.34,100750.0,100730.0,0.05088263]
[1762285823753,3.0,100740.0,100730.0,0.24943301]
[1762285824184,0.57006259,100750.0,100730.0,0.04454263]
[1762285824185,0.57006131,100750.0,100730.0,0.04454263]
[1762285824393,0.19853087,100740.0,100730.0,0.00029263]
[1762285824599,0.58216087,100740.0,100730.0,0.00029263]
[1762285824803,0.53853087,100740.0,100730.0,0.00077732]
[1762285825006,0.34,100740.0,100730.0,0.00077732]
[1762285825212,0.34,100740.0,100730.0,0.1993279]
[1762285825422,0.341,100740.0,100730.0,0.00077732]
[1762285825633,0.55030516,100740.0,100730.0,0.00077732]
[1762285825846,0.35177429,100740.0,100730.0,0.00077732]
[1762285826034,0.55230516,100740.0,100730.0,0.00077732]
[1762285826325,0.55030516,100740.0,100730.0,0.00077732]
[1762285826526,0.55130516,100740.0,100730.0,0.00077732]
[1762285826729,0.35277429,100740.0,100730.0,0.04502732]
[1762285826931,0.35277429,100740.0,100730.0,0.2435779]
[1762285827147,0.35277429,100740.0,100730.0,0.2941679]
[1762285828526,0.65838516,100740.0,100730.0,0.00077732]
[1762285828747,3.67660597,100740.0,100730.0,0.00077732]
[1762285829786,3.67560597,100740.0,100730.0,0.00077732]
[1762285829947,3.70542702,100740.0,100730.0,0.00077732]
[1762285830156,3.70942702,100740.0,100730.0,0.00077732]
[1762285830568,3.67960597,100740.0,100730.0,0.00077732]
[1762285831068,3.61615597,100740.0,100730.0,0.00077732]
[1762285831263,3.67560597,100740.0,100730.0,0.00077732]
[1762285831462,3.68260597,100740.0,100730.0,0.00077732]
[1762285831868,3.67560597,100740.0,100730.0,0.00077732]
[1762285832066,3.61215597,100740.0,100730.0,0.00077732]
[1762285832269,3.4186251,100740.0,100730.0,0.00077732]
[1762285832472,0.59893516,100740.0,100730.0,0.00077732]
[1762285833124,0.66230516,100740.0,100730.0,0.00077732]
[1762285833323,0.55530516,100740.0,100730.0,0.00077732]
[1762285833765,0.66267516,100740.0,100730.0,0.00077732]
[1762285834193,0.01677429,100740.0,100730.0,0.2916279]
[1762285834332,0.01677429,100740.0,100730.0,0.09307732]
[1762285834535,0.21530516,100740.0,100730.0,0.00077732]
[1762285834736,3.32267516,100740.0,100730.0,0.00077732]
[1762285834960,3.66267516,100740.0,100730.0,0.00077732]
[1762285835595,3.65767516,100740.0,100730.0,0.00077732]
[1762285835799,3.59930516,100740.0,100730.0,0.00077732]
[1762285836000,0.35177429,100740.0,100730.0,0.04522732]
[1762285836225,0.59430516,100740.0,100730.0,0.00077732]
[1762285836392,3.67888111,100740.0,100730.0,0.00077732]
[1762285837004,0.07698024,100740.0,100730.0,0.00077732]
[1762285837328,3.67888111,100740.0,100730.0,0.00077732]
[1762285837531,3.67588111,100740.0,100730.0,0.00077732]
[1762285837864,3.68188111,100740.0,100730.0,0.00177732]
[1762285838362,0.19856395,100730.0,100700.0,0.32064417]
[1762285838571,0.3133099,100730.0,100710.0,0.01733438]
[1762285838773,0.53857029,100720.0,100710.0,0.01733438]
[1762285838979,0.53857029,100720.0,100700.0,0.32078963]
[1762285839193,0.40227846,100720.0,100700.0,0.31085862]
[1762285839383,0.35827846,100720.0,100700.0,0.31085862]
[1762285839703,0.35827846,100720.0,100700.0,0.26400862]
[1762285839704,0.62021906,100720.0,100700.0,0.26400862]
[1762285839913,0.41717,100710.0,100700.0,0.04493079]
[1762285840126,3.69740447,100710.0,100700.0,0.04493079]
[1762285840357,3.69740447,100710.0,100700.0,0.03504615]
[1762285840565,3.49881446,100710.0,100700.0,0.03504615]
[1762285840758,3.39144446,100710.0,100700.0,0.03404615]
[1762285841066,3.39144446,100710.0,100700.0,0.23265588]
[1762285841280,0.39144446,100710.0,100700.0,0.03404615]
[1762285841650,0.39144446,100710.0,100700.0,0.27447588]
[1762285841651,0.36227446,100710.0,100700.0,0.27447588]
[1762285841924,0.39543446,100710.0,100700.0,0.03404615]
[1762285842149,0.59402447,100710.0,100700.0,0.03404615]
[1762285842354,0.69926447,100710.0,100700.0,0.03404615]
[1762285842519,0.39543446,100710.0,100700.0,0.27447588]
[1762285842733,0.36227446,100710.0,100700.0,0.32035588]
[1762285842936,0.02227446,100710.0,100700.0,0.32035588]
[1762285843345,0.02227446,100710.0,100700.0,0.27447588]
[1762285843925,0.004,100710.0,100700.0,0.32035588]
[1762285844120,0.004,100710.0,100700.0,0.37324284]
[1762285844568,0.004,100710.0,100700.0,0.32035588]
[1762285845394,0.37317,100730.0,100710.0,0.19857133]
[1762285845601,0.37317,100730.0,100720.0,0.25614029]
[1762285845602,0.35829937,100730.0,100720.0,0.25614029]
[1762285845804,0.46353937,100730.0,100720.0,0.01575]
[1762285846007,0.35829937,100730.0,100720.0,0.25614029]
[1762285846429,0.01829937,100730.0,100720.0,0.30202029]
[1762285846851,0.51177429,100740.0,100720.0,0.30202029]
[1762285846852,0.01177429,100740.0,100730.0,0.19855058]
[1762285847056,0.27137527,100740.0,100730.0,0.00988464]
[1762285847260,0.59960098,100740.0,100730.0,0.00988464]
[1762285847672,0.40106834,100740.0,100730.0,0.00988464]
[1762285847874,0.35830834,100740.0,100730.0,0.20843522]
[1762285848301,0.55683921,100740.0,100730.0,0.00988464]
[1762285848515,0.60359921,100740.0,100730.0,0.00988464]
[1762285848716,0.66607921,100740.0,100730.0,0.00988464]
[1762285848923,0.60361073,100740.0,100730.0,0.00988464]
[1762285849328,0.66609073,100740.0,100730.0,0.00988464]
[1762285849963,0.67760643,100740.0,100730.0,0.00988464]
[1762285850588,0.37283556,100740.0,100730.0,0.26844743]
[1762285850798,0.37283556,100740.0,100730.0,0.25025522]
[1762285851012,0.37283556,100740.0,100730.0,0.29613522]
[1762285851440,0.57136643,100740.0,100730.0,0.05170464]
[1762285851649,0.57136643,100740.0,100730.0,0.25025522]
[1762285851650,0.37283556,100740.0,100730.0,0.25025522]
[1762285852074,0.37283556,100740.0,100730.0,0.29613522]
[1762285852301,0.37283556,100740.0,100730.0,0.25025522]
[1762285852788,0.37283556,100740.0,100730.0,0.05170464]
[1762285853006,0.37283556,100740.0,100730.0,0.29613522]
[1762285854514,0.36131986,100740.0,100730.0,0.29613522]
[1762285855524,0.36131986,100740.0,100730.0,0.25025522]
[1762285855775,0.36131986,100740.0,100730.0,0.29613522]
[1762285856227,0.02231986,100740.0,100730.0,0.29613522]
[1762285856672,0.02231986,100740.0,100730.0,0.25025522]
[1762285857140,0.02231986,100740.0,100730.0,0.29613522]
[1762285857355,0.02231986,100740.0,100730.0,0.98890114]
[1762285858009,0.00117478,100760.0,100750.0,0.19851116]